Workbook

Sheet Form-0
B1: Form 0 : Additional information for HI RISK characteristics
B3: ='Form-1'!A3 -> 1. Part Number | C3: Part Name | D3: Serial Number | E3: FAI Report Number
B4: ='Form-1'!A4 -> iex:INSPECTIONXPERT/INSPECTION_SHEET/PROJECTPROPERTIES/PROJECTPROPERTY[Name='Part Number'] | C4: ='Form-1'!B4 -> iex:INSPECTIONXPERT/INSPECTION_SHEET/PROJECTPROPERTIES/PROJECTPROPERTY[Name='Part Name'] | D4: ='Form-1'!C4 -> iex:INSPECTIONXPERT/INSPECTION_SHEET/PROJECTPROPERTIES/PROJECTPROPERTY[Name='Serial Number'] | E4: ='Form-1'!D4:E4 -> 0
B5: Part Revision Level | C5: 6. Drawing Number | D5: 7. Drawing revision level | E5: 8. Additional Changes
B6: ='Form-1'!A6 -> iex:INSPECTIONXPERT/INSPECTION_SHEET/PROJECTPROPERTIES/PROJECTPROPERTY[Name='Part Revision'] | C6: ='Form-1'!B6 -> iex:INSPECTIONXPERT/INSPECTION_SHEET/PROJECTPROPERTIES/PROJECTPROPERTY[Name='Drawing Number'] | D6: ='Form-1'!C6 -> iex:INSPECTIONXPERT/INSPECTION_SHEET/PROJECTPROPERTIES/PROJECTPROPERTY[Name='Drawing Revision'] | E6: ='Form-1'!D6:E6 -> 0
B7: 9. Manufacturing Process Reference | C7: 10. Organization Name | D7: 11. Supplier Code | E7: 12. P.O. Number & Line Item
B8: ='Form-1'!A8 -> iex:INSPECTIONXPERT/INSPECTION_SHEET/PROJECTPROPERTIES/PROJECTPROPERTY[Name='Manufacturing process reference'] | C8: ='Form-1'!B8 -> iex:INSPECTIONXPERT/INSPECTION_SHEET/PROJECTPROPERTIES/PROJECTPROPERTY[Name='Organization name'] | D8: ='Form-1'!C8 -> iex:INSPECTIONXPERT/INSPECTION_SHEET/PROJECTPROPERTIES/PROJECTPROPERTY[Name='Supplier Code'] | E8: ='Form-1'!D8:E8 -> 0
B9: HI RISK CHARACTERISTIC | C9: ACTIONS AGREED TO FOR HIGH RISK (or justification for no action)
A10: ex1 | B10: example CHAR# 45 | C10: Prepare Gage R&R report after first 10 pieces (est. target date 4/30/09)
A11: ex2 | B11: example CHAR# 54 | C11: ESTABLISH KPC-M -- contact P&W SQAR & SQE
A12: ex3 | B12: example CHAR# 62 | C12: Go-NoGo gage will not be used - measure by CMM program (J.Doe program 5/13/09)
A13: ex4 | B13: example CHAR# 99 | C13: No action required - Operation sheets specify targeting off-nominal to prolong life of tool
B41: Signature | E41: Date
B42: Reviewed by | E42: Date
B43: Customer Approval | E43: Date

Sheet Form-1
A1: SAE AS9102 Revision A
A2: Form 1 : Part Number Accountability
A3: 1. Part Number | B3: 2. Part Name | C3: 3. Serial Number | D3: 4. FAI Report Number
A4: iex:INSPECTIONXPERT/INSPECTION_SHEET/PROJECTPROPERTIES/PROJECTPROPERTY[Name='Part Number'] | B4: iex:INSPECTIONXPERT/INSPECTION_SHEET/PROJECTPROPERTIES/PROJECTPROPERTY[Name='Part Name'] | C4: iex:INSPECTIONXPERT/INSPECTION_SHEET/PROJECTPROPERTIES/PROJECTPROPERTY[Name='Serial Number'] | D4: iex:INSPECTIONXPERT/INSPECTION_SHEET/PROJECTPROPERTIES/PROJECTPROPERTY[Name='FAI Report Number']
A5: 5. Part Revision Level | B5: 6. Drawing Number | C5: 7. Drawing revision level | D5: 8. Additional Changes
A6: iex:INSPECTIONXPERT/INSPECTION_SHEET/PROJECTPROPERTIES/PROJECTPROPERTY[Name='Part Revision'] | B6: iex:INSPECTIONXPERT/INSPECTION_SHEET/PROJECTPROPERTIES/PROJECTPROPERTY[Name='Drawing Number'] | C6: iex:INSPECTIONXPERT/INSPECTION_SHEET/PROJECTPROPERTIES/PROJECTPROPERTY[Name='Drawing Revision'] | D6: iex:INSPECTIONXPERT/INSPECTION_SHEET/PROJECTPROPERTIES/PROJECTPROPERTY[Name='Additional changes']
A7: 9. Manufacturing Process Reference | B7: 10. Organization Name | C7: 11. Supplier Code | D7: 12. P.O. Number & Line Item
A8: iex:INSPECTIONXPERT/INSPECTION_SHEET/PROJECTPROPERTIES/PROJECTPROPERTY[Name='Manufacturing process reference'] | B8: iex:INSPECTIONXPERT/INSPECTION_SHEET/PROJECTPROPERTIES/PROJECTPROPERTY[Name='Organization name'] | C8: iex:INSPECTIONXPERT/INSPECTION_SHEET/PROJECTPROPERTIES/PROJECTPROPERTY[Name='Supplier Code'] | D8: iex:INSPECTIONXPERT/INSPECTION_SHEET/PROJECTPROPERTIES/PROJECTPROPERTY[Name='P.O. number']
A9: 13. Detail FAI | B9: 14. Full FAI Partial FAI | C9: Baseline Part Number including revision level
A10: Assembly FAI | B10: Reason for partial FAI: | C10: iex:INSPECTIONXPERT/@PartNumberDashRev
A11: a) if above part number is a detail part only, go to Field 19 b) if above part number is an assembly, go to the :"INDEX" section below.
A12: INDEX of part number or sub-assembly number required to make the assembly noted above.
A13: 15. Part Number | B13: 16. Part Name | C13: 17. Part Serial Number | D13: 18. FAI Report Number
A14: iex:INSPECTIONXPERT/INSPECTION_SHEET/BILLOFMATERIAL/BOMITEM/@PartNumber | B14: iex:INSPECTIONXPERT/INSPECTION_SHEET/BILLOFMATERIAL/BOMITEM/@PartName | C14: iex:INSPECTIONXPERT/INSPECTION_SHEET/BILLOFMATERIAL/BOMITEM/@SerialNumber | D14: iex:INSPECTIONXPERT/INSPECTION_SHEET/BILLOFMATERIAL/BOMITEM/@FAIReportNumber
A39: 1) Signature indicates that all characteristics are accounted for; meet drawing requirements or are properly documented for disposition.
A40: 2) Also indicate if the FAI is complete per Section 5.4: FAI complete FAI Not Complete
A41: 19. Signature | D41: 20. Date
A42: 21. Reviewed by | D42: 22. Date
A43: 23. Customer Approval | D43: 24. Date

Sheet Form-2
A1: SAE AS9102 Revision A
A2: Form 2: Product Accountability - Raw Material, Specification and Special Process (es),
A3: Functional Testing
A4: 1. Part Number | B4: 2. Part Name | D4: 3. Serial Number | F4: 4. FAI Report Number
A5: ='Form-1'!A4 -> iex:INSPECTIONXPERT/INSPECTION_SHEET/PROJECTPROPERTIES/PROJECTPROPERTY[Name='Part Number'] | B5: ='Form-1'!B4 -> iex:INSPECTIONXPERT/INSPECTION_SHEET/PROJECTPROPERTIES/PROJECTPROPERTY[Name='Part Name'] | D5: ='Form-1'!C4 -> iex:INSPECTIONXPERT/INSPECTION_SHEET/PROJECTPROPERTIES/PROJECTPROPERTY[Name='Serial Number']
A6: 5. Material or Process Name | B6: 6. Specification Number | C6: 7. Code | D6: 8. Special Process Supplier Code | E6: 9. Customer Approval Verification (Yes/No/Na) | F6: 10. Certificate of Conformance Number
A7: iex:INSPECTIONXPERT/INSPECTION_SHEET/SPECIFICATIONS/SPECIFICATION/@Type | B7: iex:INSPECTIONXPERT/INSPECTION_SHEET/SPECIFICATIONS/SPECIFICATION/@Spec | C7: iex:INSPECTIONXPERT/INSPECTION_SHEET/SPECIFICATIONS/SPECIFICATION/@Code | D7: iex:INSPECTIONXPERT/INSPECTION_SHEET/SPECIFICATIONS/SPECIFICATION/@SupplierCode | E7: iex:INSPECTIONXPERT/INSPECTION_SHEET/SPECIFICATIONS/SPECIFICATION/@CustomerApprovalVerification | F7: iex:INSPECTIONXPERT/INSPECTION_SHEET/SPECIFICATIONS/SPECIFICATION/@CertificateNumber
A37: 11. Functional Test Procedure Number | B37: 12. Acceptance report number, if applicable
A46: 13. Comments
A47: 14. Prepared By | D47: 15 Date

Sheet Form-3
S1: =+IF(AND(F1="",G1=""),"",IF(F1="",H1/G1,(2*ABS(F1/2+G1/2-H1)/(G1-F1)))) ->  | X1: =+IF(AND(K1="",L1=""),"",IF(K1="",M1/L1,(2*ABS(K1/2+L1/2-M1)/(L1-K1)))) -> 
N4: CLICK HERE FOR NOTES
A5: 1. Part Number | G5: 2. Part Name | J5: 3. Serial Number | L5: 4. FAI Report | N5: ADDITIONAL INFORMATION FOR FAI REPORT | S5: =CONCATENATE("FAIR ",L6) -> FAIR iex:INSPECTIONXPERT/INSPECTION_SHEET/PROJECTPROPERTIES/PROJECTPROPERTY[Name='FAI Report Number'] | W5: =+L5 -> 4. FAI Report
A6: iex:INSPECTIONXPERT/INSPECTION_SHEET/PROJECTPROPERTIES/PROJECTPROPERTY[Name='Part Number'] | G6: iex:INSPECTIONXPERT/INSPECTION_SHEET/PROJECTPROPERTIES/PROJECTPROPERTY[Name='Part Name'] | J6: iex:INSPECTIONXPERT/INSPECTION_SHEET/PROJECTPROPERTIES/PROJECTPROPERTY[Name='Serial Number'] | L6: iex:INSPECTIONXPERT/INSPECTION_SHEET/PROJECTPROPERTIES/PROJECTPROPERTY[Name='FAI Report Number'] | N6: =CONCATENATE("p/n ",Text12) -> p/n iex:INSPECTIONXPERT/INSPECTION_SHEET/PROJECTPROPERTIES/PROJECTPROPERTY[Name='Part Number'] | P6: =G6 -> iex:INSPECTIONXPERT/INSPECTION_SHEET/PROJECTPROPERTIES/PROJECTPROPERTY[Name='Part Name'] | R6: =CONCATENATE("s/n ",+J6) -> s/n iex:INSPECTIONXPERT/INSPECTION_SHEET/PROJECTPROPERTIES/PROJECTPROPERTY[Name='Serial Number']
A7: Dimensional Characteristic Accountability | G7: Inspection / Test Results | O7: RISK LEVEL | Q7: other info (25 pc study) | T7: CONTAINMENT
A8: 5. Char No. | B8: 6. Reference Location | C8: 7. Characteristic Designator | D8: 8. GDT Requirement/ Comments | E8: 8. Requirement (min) Leave blank for GDT | F8: 8. Requirement (max) | G8: 9. Results | H8: 10. Designed Tooling | I8: 11. Non-Conformance Number | J8: 14. FAI Inspection Measuring Equipment | K8: 14. FAI Inspectors Identification | N8: Char. No. | O8: RISK: accepting a non-conf. as a good part | P8: Gage R&R (input GR&R as % of tolerance) | Q8: NUMBER OF PIECES | R8: Capability - Cpk requires more than 25 pieces* | S8: (express % tolerance as a decimal, e.g. 14% = 0.14) | T8: ZONE SIZE | U8: MIN (REDUCED) | V8: MAX (REDUCED) | W8: IMPROVE-MENT PLAN | Y8: Gage R&R (default=30%) | Z8: BLUEPRINT MIN | AA8: BLUEPRINT MAX | AB8: actual reading | AC8: RISK LEVEL | AD8: quantity column | AE8: GRR column | AF8: Cap row
A9: iex:INSPECTIONXPERT/INSPECTION_SHEET/ATTRIBUTES/ATTRIBUTE/@Uid | B9: iex:INSPECTIONXPERT/INSPECTION_SHEET/ATTRIBUTES/ATTRIBUTE/@SheetZone | C9: iex:INSPECTIONXPERT/INSPECTION_SHEET/ATTRIBUTES/ATTRIBUTE/@SubType | D9: iex:INSPECTIONXPERT/INSPECTION_SHEET/ATTRIBUTES/ATTRIBUTE/@Nominal | E9: iex:INSPECTIONXPERT/INSPECTION_SHEET/ATTRIBUTES/ATTRIBUTE/@LowerLimit | F9: iex:INSPECTIONXPERT/INSPECTION_SHEET/ATTRIBUTES/ATTRIBUTE/@UpperLimit | H9: iex:INSPECTIONXPERT/INSPECTION_SHEET/ATTRIBUTES/ATTRIBUTE/@Process | J9: iex:INSPECTIONXPERT/INSPECTION_SHEET/ATTRIBUTES/ATTRIBUTE/@InspectionMethod | N9: =+IF(A9="","",A9) -> iex:INSPECTIONXPERT/INSPECTION_SHEET/ATTRIBUTES/ATTRIBUTE/@Uid | O9: =AC9 ->  | Q9: 1 | R9: =+IF(AND(E9="",F9=""),"",IF(E9="",G9/F9,(2*ABS(E9/2+F9/2-G9)/(F9-E9)))) ->  | S9: =IF(Q9<25,"(%TOL)","Cpk") -> (%TOL) | T9: =+IF(AC9="LO","not required",Y9/4*(AA9-Z9)) ->  | U9: =IF(T9<>"not required",+Z9+T9,"") ->  | V9: =IF(T9<>"not required",+AA9-T9,"") ->  | W9: =IF('Form-3'!AC9="HI","YES","no") ->  | Y9: =+IF(P9="",0.3,P9) -> 0.3 | Z9: =IF(E9="","",+E9) -> iex:INSPECTIONXPERT/INSPECTION_SHEET/ATTRIBUTES/ATTRIBUTE/@LowerLimit | AA9: =IF(F9="","",+F9) -> iex:INSPECTIONXPERT/INSPECTION_SHEET/ATTRIBUTES/ATTRIBUTE/@UpperLimit | AB9: =+G9 -> 0 | AC9: =IF(AND(Z9="",AA9=""),"",INDEX('DON''T DELETE autorisktable'!$C$3:$J$23,AF9,AE9)) ->  | AD9: =VLOOKUP(Q9,'DON''T DELETE autorisktable'!$P$3:$Q$28,2) -> 5 | AE9: =VLOOKUP(Y9,'DON''T DELETE autorisktable'!$M$3:$N$12,2) -> 5 | AF9: =VLOOKUP(R9,'DON''T DELETE autorisktable'!$S$3:$W$66,$AD9) -> 
N10: =+IF(A10="","",A10) ->  | Q10: 1 | S10: =IF(Q10<25,"(%TOL)","Cpk") -> (%TOL) | W10: =IF('Form-3'!AC10="HI","YES","no") -> no | Y10: 0.3 | AB10: 0 | AC10: =IF(AND(Z10="",AA10=""),"",INDEX('DON''T DELETE autorisktable'!$C$3:$J$23,AF10,AE10)) ->  | AD10: =VLOOKUP(Q10,'DON''T DELETE autorisktable'!$P$3:$Q$28,2) -> 5 | AE10: =VLOOKUP(Y10,'DON''T DELETE autorisktable'!$M$3:$N$12,2) -> 5 | AF10: =VLOOKUP(R10,'DON''T DELETE autorisktable'!$S$3:$W$66,$AD10) -> 
Q11: 1 | S11: (%TOL) | W11: =IF('Form-3'!AC11="HI","YES","no") -> no | Y11: 0.3 | AB11: 0 | AC11: =IF(AND(Z11="",AA11=""),"",INDEX('DON''T DELETE autorisktable'!$C$3:$J$23,AF11,AE11)) ->  | AD11: =VLOOKUP(Q11,'DON''T DELETE autorisktable'!$P$3:$Q$28,2) -> 5 | AE11: =VLOOKUP(Y11,'DON''T DELETE autorisktable'!$M$3:$N$12,2) -> 5 | AF11: =VLOOKUP(R11,'DON''T DELETE autorisktable'!$S$3:$W$66,$AD11) -> 
Q12: 1 | S12: (%TOL) | W12: =IF('Form-3'!AC12="HI","YES","no") -> no | Y12: 0.3 | AB12: 0 | AC12: =IF(AND(Z12="",AA12=""),"",INDEX('DON''T DELETE autorisktable'!$C$3:$J$23,AF12,AE12)) ->  | AD12: =VLOOKUP(Q12,'DON''T DELETE autorisktable'!$P$3:$Q$28,2) -> 5 | AE12: =VLOOKUP(Y12,'DON''T DELETE autorisktable'!$M$3:$N$12,2) -> 5 | AF12: =VLOOKUP(R12,'DON''T DELETE autorisktable'!$S$3:$W$66,$AD12) -> 
Q13: 1 | S13: (%TOL) | W13: =IF('Form-3'!AC13="HI","YES","no") -> no | Y13: 0.3 | AB13: 0 | AC13: =IF(AND(Z13="",AA13=""),"",INDEX('DON''T DELETE autorisktable'!$C$3:$J$23,AF13,AE13)) ->  | AD13: =VLOOKUP(Q13,'DON''T DELETE autorisktable'!$P$3:$Q$28,2) -> 5 | AE13: =VLOOKUP(Y13,'DON''T DELETE autorisktable'!$M$3:$N$12,2) -> 5 | AF13: =VLOOKUP(R13,'DON''T DELETE autorisktable'!$S$3:$W$66,$AD13) -> 
Q14: 1 | S14: (%TOL) | W14: =IF('Form-3'!AC14="HI","YES","no") -> no | Y14: 0.3 | AB14: 0 | AC14: =IF(AND(Z14="",AA14=""),"",INDEX('DON''T DELETE autorisktable'!$C$3:$J$23,AF14,AE14)) ->  | AD14: =VLOOKUP(Q14,'DON''T DELETE autorisktable'!$P$3:$Q$28,2) -> 5 | AE14: =VLOOKUP(Y14,'DON''T DELETE autorisktable'!$M$3:$N$12,2) -> 5 | AF14: =VLOOKUP(R14,'DON''T DELETE autorisktable'!$S$3:$W$66,$AD14) -> 
Q15: 1 | S15: (%TOL) | W15: =IF('Form-3'!AC15="HI","YES","no") -> no | Y15: 0.3 | AB15: 0 | AC15: =IF(AND(Z15="",AA15=""),"",INDEX('DON''T DELETE autorisktable'!$C$3:$J$23,AF15,AE15)) ->  | AD15: =VLOOKUP(Q15,'DON''T DELETE autorisktable'!$P$3:$Q$28,2) -> 5 | AE15: =VLOOKUP(Y15,'DON''T DELETE autorisktable'!$M$3:$N$12,2) -> 5 | AF15: =VLOOKUP(R15,'DON''T DELETE autorisktable'!$S$3:$W$66,$AD15) -> 
Q16: 1 | S16: (%TOL) | W16: =IF('Form-3'!AC16="HI","YES","no") -> no | Y16: 0.3 | AB16: 0 | AC16: =IF(AND(Z16="",AA16=""),"",INDEX('DON''T DELETE autorisktable'!$C$3:$J$23,AF16,AE16)) ->  | AD16: =VLOOKUP(Q16,'DON''T DELETE autorisktable'!$P$3:$Q$28,2) -> 5 | AE16: =VLOOKUP(Y16,'DON''T DELETE autorisktable'!$M$3:$N$12,2) -> 5 | AF16: =VLOOKUP(R16,'DON''T DELETE autorisktable'!$S$3:$W$66,$AD16) -> 
Q17: 1 | S17: (%TOL) | W17: =IF('Form-3'!AC17="HI","YES","no") -> no | Y17: 0.3 | AB17: 0 | AC17: =IF(AND(Z17="",AA17=""),"",INDEX('DON''T DELETE autorisktable'!$C$3:$J$23,AF17,AE17)) ->  | AD17: =VLOOKUP(Q17,'DON''T DELETE autorisktable'!$P$3:$Q$28,2) -> 5 | AE17: =VLOOKUP(Y17,'DON''T DELETE autorisktable'!$M$3:$N$12,2) -> 5 | AF17: =VLOOKUP(R17,'DON''T DELETE autorisktable'!$S$3:$W$66,$AD17) -> 
Q18: 1 | S18: (%TOL) | W18: =IF('Form-3'!AC18="HI","YES","no") -> no | Y18: 0.3 | AB18: 0 | AC18: =IF(AND(Z18="",AA18=""),"",INDEX('DON''T DELETE autorisktable'!$C$3:$J$23,AF18,AE18)) ->  | AD18: =VLOOKUP(Q18,'DON''T DELETE autorisktable'!$P$3:$Q$28,2) -> 5 | AE18: =VLOOKUP(Y18,'DON''T DELETE autorisktable'!$M$3:$N$12,2) -> 5 | AF18: =VLOOKUP(R18,'DON''T DELETE autorisktable'!$S$3:$W$66,$AD18) -> 
Q19: 1 | S19: (%TOL) | W19: =IF('Form-3'!AC19="HI","YES","no") -> no | Y19: 0.3 | AB19: 0 | AC19: =IF(AND(Z19="",AA19=""),"",INDEX('DON''T DELETE autorisktable'!$C$3:$J$23,AF19,AE19)) ->  | AD19: =VLOOKUP(Q19,'DON''T DELETE autorisktable'!$P$3:$Q$28,2) -> 5 | AE19: =VLOOKUP(Y19,'DON''T DELETE autorisktable'!$M$3:$N$12,2) -> 5 | AF19: =VLOOKUP(R19,'DON''T DELETE autorisktable'!$S$3:$W$66,$AD19) -> 
N20: =+IF(A20="","",A20) ->  | Q20: 1 | S20: =IF(Q20<25,"(%TOL)","Cpk") -> (%TOL) | W20: =IF('Form-3'!AC20="HI","YES","no") -> no | Y20: 0.3 | AB20: 0 | AC20: =IF(AND(Z20="",AA20=""),"",INDEX('DON''T DELETE autorisktable'!$C$3:$J$23,AF20,AE20)) ->  | AD20: =VLOOKUP(Q20,'DON''T DELETE autorisktable'!$P$3:$Q$28,2) -> 5 | AE20: =VLOOKUP(Y20,'DON''T DELETE autorisktable'!$M$3:$N$12,2) -> 5 | AF20: =VLOOKUP(R20,'DON''T DELETE autorisktable'!$S$3:$W$66,$AD20) -> 
Q21: 1 | S21: (%TOL) | W21: =IF('Form-3'!AC21="HI","YES","no") -> no | Y21: 0.3 | AB21: 0 | AC21: =IF(AND(Z21="",AA21=""),"",INDEX('DON''T DELETE autorisktable'!$C$3:$J$23,AF21,AE21)) ->  | AD21: =VLOOKUP(Q21,'DON''T DELETE autorisktable'!$P$3:$Q$28,2) -> 5 | AE21: =VLOOKUP(Y21,'DON''T DELETE autorisktable'!$M$3:$N$12,2) -> 5 | AF21: =VLOOKUP(R21,'DON''T DELETE autorisktable'!$S$3:$W$66,$AD21) -> 
Q22: 1 | S22: (%TOL) | W22: =IF('Form-3'!AC22="HI","YES","no") -> no | Y22: 0.3 | AB22: 0 | AC22: =IF(AND(Z22="",AA22=""),"",INDEX('DON''T DELETE autorisktable'!$C$3:$J$23,AF22,AE22)) ->  | AD22: =VLOOKUP(Q22,'DON''T DELETE autorisktable'!$P$3:$Q$28,2) -> 5 | AE22: =VLOOKUP(Y22,'DON''T DELETE autorisktable'!$M$3:$N$12,2) -> 5 | AF22: =VLOOKUP(R22,'DON''T DELETE autorisktable'!$S$3:$W$66,$AD22) -> 
Q23: 1 | S23: (%TOL) | W23: =IF('Form-3'!AC23="HI","YES","no") -> no | Y23: 0.3 | AB23: 0 | AC23: =IF(AND(Z23="",AA23=""),"",INDEX('DON''T DELETE autorisktable'!$C$3:$J$23,AF23,AE23)) ->  | AD23: =VLOOKUP(Q23,'DON''T DELETE autorisktable'!$P$3:$Q$28,2) -> 5 | AE23: =VLOOKUP(Y23,'DON''T DELETE autorisktable'!$M$3:$N$12,2) -> 5 | AF23: =VLOOKUP(R23,'DON''T DELETE autorisktable'!$S$3:$W$66,$AD23) -> 
Q24: 1 | S24: (%TOL) | W24: =IF('Form-3'!AC24="HI","YES","no") -> no | Y24: 0.3 | AB24: 0 | AC24: =IF(AND(Z24="",AA24=""),"",INDEX('DON''T DELETE autorisktable'!$C$3:$J$23,AF24,AE24)) ->  | AD24: =VLOOKUP(Q24,'DON''T DELETE autorisktable'!$P$3:$Q$28,2) -> 5 | AE24: =VLOOKUP(Y24,'DON''T DELETE autorisktable'!$M$3:$N$12,2) -> 5 | AF24: =VLOOKUP(R24,'DON''T DELETE autorisktable'!$S$3:$W$66,$AD24) -> 
Q25: 1 | S25: (%TOL) | W25: =IF('Form-3'!AC25="HI","YES","no") -> no | Y25: 0.3 | AB25: 0 | AC25: =IF(AND(Z25="",AA25=""),"",INDEX('DON''T DELETE autorisktable'!$C$3:$J$23,AF25,AE25)) ->  | AD25: =VLOOKUP(Q25,'DON''T DELETE autorisktable'!$P$3:$Q$28,2) -> 5 | AE25: =VLOOKUP(Y25,'DON''T DELETE autorisktable'!$M$3:$N$12,2) -> 5 | AF25: =VLOOKUP(R25,'DON''T DELETE autorisktable'!$S$3:$W$66,$AD25) -> 
Q26: 1 | S26: (%TOL) | W26: =IF('Form-3'!AC26="HI","YES","no") -> no | Y26: 0.3 | AB26: 0 | AC26: =IF(AND(Z26="",AA26=""),"",INDEX('DON''T DELETE autorisktable'!$C$3:$J$23,AF26,AE26)) ->  | AD26: =VLOOKUP(Q26,'DON''T DELETE autorisktable'!$P$3:$Q$28,2) -> 5 | AE26: =VLOOKUP(Y26,'DON''T DELETE autorisktable'!$M$3:$N$12,2) -> 5 | AF26: =VLOOKUP(R26,'DON''T DELETE autorisktable'!$S$3:$W$66,$AD26) -> 
Q27: 1 | S27: (%TOL) | W27: =IF('Form-3'!AC27="HI","YES","no") -> no | Y27: 0.3 | AB27: 0 | AC27: =IF(AND(Z27="",AA27=""),"",INDEX('DON''T DELETE autorisktable'!$C$3:$J$23,AF27,AE27)) ->  | AD27: =VLOOKUP(Q27,'DON''T DELETE autorisktable'!$P$3:$Q$28,2) -> 5 | AE27: =VLOOKUP(Y27,'DON''T DELETE autorisktable'!$M$3:$N$12,2) -> 5 | AF27: =VLOOKUP(R27,'DON''T DELETE autorisktable'!$S$3:$W$66,$AD27) -> 
Q28: 1 | S28: (%TOL) | W28: =IF('Form-3'!AC28="HI","YES","no") -> no | Y28: 0.3 | AB28: 0 | AC28: =IF(AND(Z28="",AA28=""),"",INDEX('DON''T DELETE autorisktable'!$C$3:$J$23,AF28,AE28)) ->  | AD28: =VLOOKUP(Q28,'DON''T DELETE autorisktable'!$P$3:$Q$28,2) -> 5 | AE28: =VLOOKUP(Y28,'DON''T DELETE autorisktable'!$M$3:$N$12,2) -> 5 | AF28: =VLOOKUP(R28,'DON''T DELETE autorisktable'!$S$3:$W$66,$AD28) -> 
Q29: 1 | S29: (%TOL) | W29: =IF('Form-3'!AC29="HI","YES","no") -> no | Y29: 0.3 | AB29: 0 | AC29: =IF(AND(Z29="",AA29=""),"",INDEX('DON''T DELETE autorisktable'!$C$3:$J$23,AF29,AE29)) ->  | AD29: =VLOOKUP(Q29,'DON''T DELETE autorisktable'!$P$3:$Q$28,2) -> 5 | AE29: =VLOOKUP(Y29,'DON''T DELETE autorisktable'!$M$3:$N$12,2) -> 5 | AF29: =VLOOKUP(R29,'DON''T DELETE autorisktable'!$S$3:$W$66,$AD29) -> 
Q30: 1 | S30: (%TOL) | W30: =IF('Form-3'!AC30="HI","YES","no") -> no | Y30: 0.3 | AB30: 0 | AC30: =IF(AND(Z30="",AA30=""),"",INDEX('DON''T DELETE autorisktable'!$C$3:$J$23,AF30,AE30)) ->  | AD30: =VLOOKUP(Q30,'DON''T DELETE autorisktable'!$P$3:$Q$28,2) -> 5 | AE30: =VLOOKUP(Y30,'DON''T DELETE autorisktable'!$M$3:$N$12,2) -> 5 | AF30: =VLOOKUP(R30,'DON''T DELETE autorisktable'!$S$3:$W$66,$AD30) -> 
Q31: 1 | S31: (%TOL) | W31: =IF('Form-3'!AC31="HI","YES","no") -> no | Y31: 0.3 | AB31: 0 | AC31: =IF(AND(Z31="",AA31=""),"",INDEX('DON''T DELETE autorisktable'!$C$3:$J$23,AF31,AE31)) ->  | AD31: =VLOOKUP(Q31,'DON''T DELETE autorisktable'!$P$3:$Q$28,2) -> 5 | AE31: =VLOOKUP(Y31,'DON''T DELETE autorisktable'!$M$3:$N$12,2) -> 5 | AF31: =VLOOKUP(R31,'DON''T DELETE autorisktable'!$S$3:$W$66,$AD31) -> 
Q32: 1 | S32: (%TOL) | W32: =IF('Form-3'!AC32="HI","YES","no") -> no | Y32: 0.3 | AB32: 0 | AC32: =IF(AND(Z32="",AA32=""),"",INDEX('DON''T DELETE autorisktable'!$C$3:$J$23,AF32,AE32)) ->  | AD32: =VLOOKUP(Q32,'DON''T DELETE autorisktable'!$P$3:$Q$28,2) -> 5 | AE32: =VLOOKUP(Y32,'DON''T DELETE autorisktable'!$M$3:$N$12,2) -> 5 | AF32: =VLOOKUP(R32,'DON''T DELETE autorisktable'!$S$3:$W$66,$AD32) -> 
Q33: 1 | S33: (%TOL) | W33: =IF('Form-3'!AC33="HI","YES","no") -> no | Y33: 0.3 | AB33: 0 | AC33: =IF(AND(Z33="",AA33=""),"",INDEX('DON''T DELETE autorisktable'!$C$3:$J$23,AF33,AE33)) ->  | AD33: =VLOOKUP(Q33,'DON''T DELETE autorisktable'!$P$3:$Q$28,2) -> 5 | AE33: =VLOOKUP(Y33,'DON''T DELETE autorisktable'!$M$3:$N$12,2) -> 5 | AF33: =VLOOKUP(R33,'DON''T DELETE autorisktable'!$S$3:$W$66,$AD33) -> 
A34: The signature indicates that all characteristics are accounted for; meet drawing requirements or are properly documented for disposition. | N34: *if entering capability for less than 25 pieces, enter the percentage of tolerance used by the entire range of parts (see below for equations) | AA34: =+IF(AND(#REF!="",#REF!=""),"",IF(#REF!="",#REF!/#REF!,(2*ABS(#REF!/2+#REF!/2-#REF!)/(#REF!-#REF!)))) -> 
A35: 12. Prepared By | J35: 13. Date | N35: NOTE: Capability cannot be calculated for MIN ONLY or MAX ONLY, except Geometric Tolerances (e.g true position, flatness, etc) where 0.000 is the desired target

Sheet EXAMPLES
B1: 1 | C1: THE F.A.I.R. PART OF THE FORM (left side) NEVER CHANGES - IT IS BASED ON ONE SINGLE PIECE PRESENTED AT TIME OF F.A.I.
D2: -- The right half of The form is YOUR space to add more information about the process - it is dynamic and can be edited as more information is known/discovered
B3: 2 | C3: "HI RISK" DOES NOT MEAN THE PART CANNOT SHIP ! -- It is simply an indication that the process is more likely to produce future non-conformances
B4: 3 | C4: LOW RISK DOES NOT MEAN THE PROCESS IS 100% SAFE !
B5: 4 | C5: HI RISK DEMANDS A CLOSER LOOK - AND ACTION (record actions on FORM O)
C6: 4.1 | D6: USE MANUFACTURING ENGINEERING JUDGEMENT - Some HI RISK only be a funciton of this spreadsheet
D7: 4.1.1 | E7: For example -- Some targeting off-center is acceptable (to maximize tool life, to prevent rolled edges in peening, to take advantage of MMC conditions - etc.)
D8: 4.1.2 | E8: DOCUMENT INTENT!
C9: 4.2 | D9: GOOD GAGE R&R (low measurement error) is the most powerful tool to reduce risk level
C10: 4.3 | D10: CONTAINMENT ZONES ARE SUGGESTED RESTRICTIONS FOR "FIRST TIME ACCEPT" INSPECTION LIMITS
D11: 4.3.1 | E11: The containment zone is the "FRINGE" close to blueprint limits that require verification of measurements
D12: 4.3.2 | E12: Containment Zone = (GAGE R&R % of tolerance)x(BP max - BP min) / 4
D13: 4.3.3 | E13: If the part falls within the containment limits - accept as usual
D14: 4.3.4 | E14: If the part falls between Containment MAX and BLUEPRINT MAX - Verify the dimension using another method, DQR/SQAR Overinspect, multiple (recorded!) measurements, etc
B15: 5 | C15: USE THIS FORM TO TRACK IMPROVEMENTS TO THE PROCESS - during P&W Manufacturing Process Reviews (MPRs), or other reviews
B16: 6 | C16: ALWAYS HANDLE NON-CONFORMANCES PER PWQA6088
B17: 7 | C17: IF IN DOUBT - CONTACT YOUR P&W SQAR - and see below for examples
C20: 1. Part Number | I20: 2. Part Name | L20: 3. Serial Number | N20: 4. FAI Report | P20: ADDITIONAL INFORMATION FOR FAI REPORT | U20: =CONCATENATE("FAIR ",N21) -> FAIR | Y20: =+N20 -> 4. FAI Report
P21: =CONCATENATE("p/n ",Text12) -> p/n | R21: =I21 -> 0 | T21: =CONCATENATE("s/n ",+L21) -> s/n
C22: Dimensional Characteristic Accountability | I22: Inspection / Test Results | Q22: RISK LEVEL | S22: other info (25 pc study) | V22: CONTAINMENT
C23: 5. Char No. | D23: 6. Reference Location | E23: 7. Characteristic Designator | F23: 8. GDT Requirement/ Comments | G23: 8. Requirement (min) leave blank for GDT | H23: 8. Requirement (max) | I23: 9. Results | J23: 10. Designed Tooling | K23: 11. Non-Conformance Number | L23: 14. FAI Inspection Measuring Equipment | M23: 14. FAI Inspectors Identification | P23: Char. No. | Q23: RISK: accepting a non-conf. as a good part | R23: Gage R&R (input GR&R as % of tolerance) | S23: NUMBER OF PIECES | T23: Capability - Cpk requires more than 25 pieces* | U23: (express % tolerance as a decimal, e.g. 14% = 0.14) | V23: ZONE SIZE | W23: MIN (REDUCED) | X23: MAX (REDUCED) | Y23: IMPROVE-MENT PLAN | AA23: Gage R&R (default=30%) | AB23: BLUEPRINT MIN | AC23: BLUEPRINT MAX | AD23: actual reading | AE23: RISK LEVEL | AF23: quantity column | AG23: GRR column | AH23: Cap row
C25: Simple dimension | G25: 1.003 | H25: 1.009 | I25: 1.0025 | Q25: =AE25 -> HI | S25: 1 | T25: =+IF(AND(G25="",H25=""),"",IF(G25="",I25/H25,(2*ABS(G25/2+H25/2-I25)/(H25-G25)))) -> 1.166666667 | U25: =IF(S25<25,"(%TOL)","Cpk") -> (%TOL) | V25: =+IF(AE25="LO","not required",AA25/4*(AC25-AB25)) -> 0.00045 | W25: =IF(V25<>"not required",+AB25+V25,"") -> 1.00345 | X25: =IF(V25<>"not required",+AC25-V25,"") -> 1.00855 | Y25: =IF('Form-3'!AC9="HI","YES","no") ->  | AA25: =+IF(R25="",0.3,R25) -> 0.3 | AB25: =IF(G25="","",+G25) -> 1.003 | AC25: 1.009 | AD25: =+I25 -> 1.0025 | AE25: =IF(AND(AB25="",AC25=""),"",INDEX('DON''T DELETE autorisktable'!$C$3:$J$23,AH25,AG25)) -> HI | AF25: =VLOOKUP(S25,'DON''T DELETE autorisktable'!$P$3:$Q$28,2) -> 5 | AG25: =VLOOKUP(AA25,'DON''T DELETE autorisktable'!$M$3:$N$12,2) -> 5 | AH25: =VLOOKUP(T25,'DON''T DELETE autorisktable'!$S$3:$W$66,$AF25) -> 2
P26: =+IF(C26="","",C26) -> 
C27: Min. only (e.g. Hardness, wall thickness, etc.) | G27: 56 | H27: NR | I27: 57 | J27: (( ENTER "NR" FOR "No requirent". NO RISK WILL BE CALCULATED FOR A ONE SIDED TOLERANCE - THIS IS OK - USE JUDGEMENT TO DETERMINE RISK )) | Q27: =AE27 ->  | S27: 1 | U27: =IF(S27<25,"(%TOL)","Cpk") -> (%TOL) | V27: =+IF(AE27="LO","not required",AA27/4*(AC27-AB27)) ->  | W27: =IF(V27<>"not required",+AB27+V27,"") ->  | X27: =IF(V27<>"not required",+AC27-V27,"") ->  | Y27: =IF('Form-3'!AC10="HI","YES","no") -> no | AA27: =+IF(R27="",0.3,R27) -> 0.3 | AB27: 56 | AC27: NR | AD27: 57 | AE27: =IF(AND(AB27="",AC27=""),"",INDEX('DON''T DELETE autorisktable'!$C$3:$J$23,AH27,AG27)) ->  | AF27: =VLOOKUP(S27,'DON''T DELETE autorisktable'!$P$3:$Q$28,2) -> 5 | AG27: =VLOOKUP(AA27,'DON''T DELETE autorisktable'!$M$3:$N$12,2) -> 5 | AH27: =VLOOKUP(T27,'DON''T DELETE autorisktable'!$S$3:$W$66,$AF27) -> 
C29: Max only (e.g. Coating thickness, max step size, etc), two examples - note actual values | G29: NR | H29: 0.005 | I29: 0.004 | J29: (( FOR MAX ONLY DIMENSIONS, THE ACTUAL-VALUE FORMATTING WILL BE REVERSED - FORMATTING DOES NOT MATTER - LOOK AT THE VALUES ! ! ! )) (( NO RISK WILL BE CALCULATED FOR A ONE SIDED TOLERANCE )) | Q29: =AE29 ->  | S29: 1 | U29: =IF(S29<25,"(%TOL)","Cpk") -> (%TOL) | V29: =+IF(AE29="LO","not required",AA29/4*(AC29-AB29)) ->  | W29: =IF(V29<>"not required",+AB29+V29,"") ->  | X29: =IF(V29<>"not required",+AC29-V29,"") ->  | Y29: =IF('Form-3'!AC11="HI","YES","no") -> no | AA29: =+IF(R29="",0.3,R29) -> 0.3 | AB29: NR | AC29: 0.005 | AD29: 0.004 | AE29: =IF(AND(AB29="",AC29=""),"",INDEX('DON''T DELETE autorisktable'!$C$3:$J$23,AH29,AG29)) ->  | AF29: =VLOOKUP(S29,'DON''T DELETE autorisktable'!$P$3:$Q$28,2) -> 5 | AG29: =VLOOKUP(AA29,'DON''T DELETE autorisktable'!$M$3:$N$12,2) -> 5 | AH29: =VLOOKUP(T29,'DON''T DELETE autorisktable'!$S$3:$W$66,$AF29) -> 
G30: NR | H30: 0.005 | I30: 0.006 | Q30: =AE30 ->  | S30: 1 | U30: =IF(S30<25,"(%TOL)","Cpk") -> (%TOL) | V30: =+IF(AE30="LO","not required",AA30/4*(AC30-AB30)) ->  | W30: =IF(V30<>"not required",+AB30+V30,"") ->  | X30: =IF(V30<>"not required",+AC30-V30,"") ->  | Y30: =IF('Form-3'!AC12="HI","YES","no") -> no | AA30: =+IF(R30="",0.3,R30) -> 0.3 | AB30: NR | AC30: 0.005 | AD30: 0.006 | AE30: =IF(AND(AB30="",AC30=""),"",INDEX('DON''T DELETE autorisktable'!$C$3:$J$23,AH30,AG30)) ->  | AF30: =VLOOKUP(S30,'DON''T DELETE autorisktable'!$P$3:$Q$28,2) -> 5 | AG30: =VLOOKUP(AA30,'DON''T DELETE autorisktable'!$M$3:$N$12,2) -> 5 | AH30: =VLOOKUP(T30,'DON''T DELETE autorisktable'!$S$3:$W$66,$AF30) -> 
C32: GDT TOLERANCES | F32: True Pos. | H32: 0.006 | I32: 0.004 | J32: (( GDT DIMS MUST HAVE A BLANK FOR MIN VALUE - THIS ALLOWS THE SPREADSHEET TO CALCULATE RISK )) | Q32: =AE32 -> MOD | S32: 1 | T32: =+IF(AND(G32="",H32=""),"",IF(G32="",I32/H32,(2*ABS(G32/2+H32/2-I32)/(H32-G32)))) -> 0.6666666667 | U32: =IF(S32<25,"(%TOL)","Cpk") -> (%TOL) | V32: =+IF(AE32="LO","not required",AA32/4*(AC32-AB32)) ->  | W32: =IF(V32<>"not required",+AB32+V32,"") ->  | X32: =IF(V32<>"not required",+AC32-V32,"") ->  | Y32: =IF('Form-3'!AC11="HI","YES","no") -> no | AA32: =+IF(R32="",0.3,R32) -> 0.3 | AB32: =IF(G32="","",+G32) ->  | AC32: =IF(H32="","",+H32) -> 0.006 | AD32: =+I32 -> 0.004 | AE32: =IF(AND(AB32="",AC32=""),"",INDEX('DON''T DELETE autorisktable'!$C$3:$J$23,AH32,AG32)) -> MOD | AF32: =VLOOKUP(S32,'DON''T DELETE autorisktable'!$P$3:$Q$28,2) -> 5 | AG32: =VLOOKUP(AA32,'DON''T DELETE autorisktable'!$M$3:$N$12,2) -> 5 | AH32: =VLOOKUP(T32,'DON''T DELETE autorisktable'!$S$3:$W$66,$AF32) -> 12
C34: GDT TOLERANCES, (MMC) | Q34: =AE34 ->  | S34: 1 | T34: =+IF(AND(G34="",H34=""),"",IF(G34="",I34/H34,(2*ABS(G34/2+H34/2-I34)/(H34-G34)))) ->  | U34: =IF(S34<25,"(%TOL)","Cpk") -> (%TOL) | V34: =+IF(AE34="LO","not required",AA34/4*(AC34-AB34)) ->  | W34: =IF(V34<>"not required",+AB34+V34,"") ->  | X34: =IF(V34<>"not required",+AC34-V34,"") ->  | Y34: =IF('Form-3'!AC13="HI","YES","no") -> no | AA34: =+IF(R34="",0.3,R34) -> 0.3 | AB34: =IF(G34="","",+G34) ->  | AD34: =+I34 -> 0 | AE34: =IF(AND(AB34="",AC34=""),"",INDEX('DON''T DELETE autorisktable'!$C$3:$J$23,AH34,AG34)) ->  | AF34: =VLOOKUP(S34,'DON''T DELETE autorisktable'!$P$3:$Q$28,2) -> 5 | AG34: =VLOOKUP(AA34,'DON''T DELETE autorisktable'!$M$3:$N$12,2) -> 5 | AH34: =VLOOKUP(T34,'DON''T DELETE autorisktable'!$S$3:$W$66,$AF34) -> 
C35: 19 | D35: 5C-1 | F35: True Pos. | H35: 0.006 | I35: 0.005 | J35: (( When considering GDT Tolerances with MMC or LMC conditions, it is best to use the un-altered tolerance first to understand the capability of the process producing the feature. The risk level should be considered in light of the bonus tolerance. In this example, the true position is close to max, but the size of the hole allows more tolerance. This may be deemed as an acceptable risk level by the SQAR, based on more process information. )) | P35: 19 | Q35: =AE35 -> MOD | R35: 0.26 | S35: 25 | T35: 1.04 | U35: =IF(S35<25,"(%TOL)","Cpk") -> Cpk | V35: =+IF(AE35="LO","not required",AA35/4*(AC35-AB35)) ->  | W35: =IF(V35<>"not required",+AB35+V35,"") ->  | X35: =IF(V35<>"not required",+AC35-V35,"") ->  | Y35: =IF('Form-3'!AC14="HI","YES","no") -> no | AA35: =+IF(R35="",0.3,R35) -> 0.26 | AC35: 0.006 | AD35: =+I35 -> 0.005 | AE35: =IF(AND(AB35="",AC35=""),"",INDEX('DON''T DELETE autorisktable'!$C$3:$J$23,AH35,AG35)) -> MOD | AF35: =VLOOKUP(S35,'DON''T DELETE autorisktable'!$P$3:$Q$28,2) -> 2 | AG35: =VLOOKUP(AA35,'DON''T DELETE autorisktable'!$M$3:$N$12,2) -> 4 | AH35: =VLOOKUP(T35,'DON''T DELETE autorisktable'!$S$3:$W$66,$AF35) -> 16
C36: 19 (MMC) | D36: 5C-1 | F36: True Pos (MMC) | H36: 0.01 | I36: 0.005 | P36: 19 (MMC) | Q36: =AE36 -> LO | S36: 1 | T36: =+IF(AND(G36="",H36=""),"",IF(G36="",I36/H36,(2*ABS(G36/2+H36/2-I36)/(H36-G36)))) -> 0.5 | U36: =IF(S36<25,"(%TOL)","Cpk") -> (%TOL) | V36: =+IF(AE36="LO","not required",AA36/4*(AC36-AB36)) -> not required | W36: =IF(V36<>"not required",+AB36+V36,"") ->  | X36: =IF(V36<>"not required",+AC36-V36,"") ->  | Y36: =IF('Form-3'!AC15="HI","YES","no") -> no | AA36: =+IF(R36="",0.3,R36) -> 0.3 | AC36: 0.01 | AD36: =+I36 -> 0.005 | AE36: =IF(AND(AB36="",AC36=""),"",INDEX('DON''T DELETE autorisktable'!$C$3:$J$23,AH36,AG36)) -> LO | AF36: =VLOOKUP(S36,'DON''T DELETE autorisktable'!$P$3:$Q$28,2) -> 5 | AG36: =VLOOKUP(AA36,'DON''T DELETE autorisktable'!$M$3:$N$12,2) -> 5 | AH36: =VLOOKUP(T36,'DON''T DELETE autorisktable'!$S$3:$W$66,$AF36) -> 21
C38: Diameter as a range Min to Max:
C39: 35 (min) | D39: 12E-10 | E39: KPC-2 | G39: 0.458 | H39: 0.46 | I39: 0.4575 | J39: (( REPORT DIA AS A RANGE - Min and Max - over 2 lines - RISK WILL CALCULATE FOR BOTH ENDS OF THE RANGE. RISK NOW HAS 6 LEVELS: LO-LO, LO-MOD, MOD-MOD, LO-HI, MOD-HI, HI-HI )) | P39: 35 (min) | Q39: =AE39 -> HI | S39: 1 | T39: =+IF(AND(G39="",H39=""),"",IF(G39="",I39/H39,(2*ABS(G39/2+H39/2-I39)/(H39-G39)))) -> 1.5 | U39: =IF(S39<25,"(%TOL)","Cpk") -> (%TOL) | V39: =+IF(AE39="LO","not required",AA39/4*(AC39-AB39)) -> 0.00015 | W39: =IF(V39<>"not required",+AB39+V39,"") -> 0.45815 | X39: =IF(V39<>"not required",+AC39-V39,"") -> 0.45985 | Y39: =IF('Form-3'!AC15="HI","YES","no") -> no | AA39: =+IF(R39="",0.3,R39) -> 0.3 | AB39: =IF(G39="","",+G39) -> 0.458 | AC39: =IF(H39="","",+H39) -> 0.46 | AD39: =+I39 -> 0.4575 | AE39: =IF(AND(AB39="",AC39=""),"",INDEX('DON''T DELETE autorisktable'!$C$3:$J$23,AH39,AG39)) -> HI | AF39: =VLOOKUP(S39,'DON''T DELETE autorisktable'!$P$3:$Q$28,2) -> 5 | AG39: =VLOOKUP(AA39,'DON''T DELETE autorisktable'!$M$3:$N$12,2) -> 5 | AH39: =VLOOKUP(T39,'DON''T DELETE autorisktable'!$S$3:$W$66,$AF39) -> 1
C40: 35 (max) | D40: 12E-10 | E40: KPC-2 | G40: 0.458 | H40: 0.46 | I40: 0.4596 | P40: 35 (max) | Q40: =AE40 -> MOD | R40: 0.35 | S40: 1 | T40: =+IF(AND(G40="",H40=""),"",IF(G40="",I40/H40,(2*ABS(G40/2+H40/2-I40)/(H40-G40)))) -> 0.6 | U40: =IF(S40<25,"(%TOL)","Cpk") -> (%TOL) | V40: =+IF(AE40="LO","not required",AA40/4*(AC40-AB40)) -> 0.000175 | W40: =IF(V40<>"not required",+AB40+V40,"") -> 0.458175 | X40: =IF(V40<>"not required",+AC40-V40,"") -> 0.459825 | Y40: =IF('Form-3'!AC16="HI","YES","no") -> no | AA40: =+IF(R40="",0.3,R40) -> 0.35 | AB40: =IF(G40="","",+G40) -> 0.458 | AC40: =IF(H40="","",+H40) -> 0.46 | AD40: =+I40 -> 0.4596 | AE40: =IF(AND(AB40="",AC40=""),"",INDEX('DON''T DELETE autorisktable'!$C$3:$J$23,AH40,AG40)) -> MOD | AF40: =VLOOKUP(S40,'DON''T DELETE autorisktable'!$P$3:$Q$28,2) -> 5 | AG40: =VLOOKUP(AA40,'DON''T DELETE autorisktable'!$M$3:$N$12,2) -> 6 | AH40: =VLOOKUP(T40,'DON''T DELETE autorisktable'!$S$3:$W$66,$AF40) -> 16
C42: Tabulated Measurements: | Q42: =AE42 ->  | S42: 1 | T42: =+IF(AND(G42="",H42=""),"",IF(G42="",I42/H42,(2*ABS(G42/2+H42/2-I42)/(H42-G42)))) ->  | U42: =IF(S42<25,"(%TOL)","Cpk") -> (%TOL) | V42: =+IF(AE42="LO","not required",AA42/4*(AC42-AB42)) ->  | W42: =IF(V42<>"not required",+AB42+V42,"") ->  | X42: =IF(V42<>"not required",+AC42-V42,"") ->  | Y42: =IF('Form-3'!AC19="HI","YES","no") -> no | AA42: =+IF(R42="",0.3,R42) -> 0.3 | AB42: =IF(G42="","",+G42) ->  | AC42: =IF(H42="","",+H42) ->  | AD42: =+I42 -> 0 | AE42: =IF(AND(AB42="",AC42=""),"",INDEX('DON''T DELETE autorisktable'!$C$3:$J$23,AH42,AG42)) ->  | AF42: =VLOOKUP(S42,'DON''T DELETE autorisktable'!$P$3:$Q$28,2) -> 5 | AG42: =VLOOKUP(AA42,'DON''T DELETE autorisktable'!$M$3:$N$12,2) -> 5 | AH42: =VLOOKUP(T42,'DON''T DELETE autorisktable'!$S$3:$W$66,$AF42) -> 
C43: 15 | D43: 4F-3 | E43: TABLE | P43: 15 | S43: 1 | U43: (%TOL) | Y43: =IF('Form-3'!AC20="HI","YES","no") -> no | AA43: 0.3 | AD43: 0 | AE43: =IF(AND(AB43="",AC43=""),"",INDEX('DON''T DELETE autorisktable'!$C$3:$J$23,AH43,AG43)) ->  | AF43: =VLOOKUP(S43,'DON''T DELETE autorisktable'!$P$3:$Q$28,2) -> 5 | AG43: =VLOOKUP(AA43,'DON''T DELETE autorisktable'!$M$3:$N$12,2) -> 5 | AH43: =VLOOKUP(T43,'DON''T DELETE autorisktable'!$S$3:$W$66,$AF43) -> 
C44: 15.1 | D44: section A-A | E44: U | G44: 0.04 | H44: 0.052 | I44: 0.046 | J44: (( Tables on the the field of the blueprint are shown in any way that makes sense to both the Preparer and to the SQAR. Individual features within the table should be separated by line item so RISK may be calculated individually. The table may be identified with one balloon number "X", and each feature as a "X.1, X.2, X.3...", or each feature may be identified with it's own balloon. As long as each feature can be traced from BP to this form, it will be deemed acceptable. )) | P44: 15.1 | Q44: LO | S44: 1 | T44: 0 | U44: (%TOL) | V44: not required | Y44: =IF('Form-3'!AC21="HI","YES","no") -> no | AA44: 0.3 | AB44: 0.04 | AC44: 0.052 | AD44: 0.046 | AE44: =IF(AND(AB44="",AC44=""),"",INDEX('DON''T DELETE autorisktable'!$C$3:$J$23,AH44,AG44)) -> LO | AF44: =VLOOKUP(S44,'DON''T DELETE autorisktable'!$P$3:$Q$28,2) -> 5 | AG44: =VLOOKUP(AA44,'DON''T DELETE autorisktable'!$M$3:$N$12,2) -> 5 | AH44: =VLOOKUP(T44,'DON''T DELETE autorisktable'!$S$3:$W$66,$AF44) -> 21
C45: 15.2 | D45: Section C-C | E45: U | G45: 0.045 | H45: 0.057 | I45: 0.048 | P45: 15.2 | Q45: LO | S45: 1 | T45: 0.5 | U45: (%TOL) | V45: not required | Y45: =IF('Form-3'!AC23="HI","YES","no") -> no | AA45: 0.3 | AB45: 0.045 | AC45: 0.057 | AD45: 0.048 | AE45: =IF(AND(AB45="",AC45=""),"",INDEX('DON''T DELETE autorisktable'!$C$3:$J$23,AH45,AG45)) -> LO | AF45: =VLOOKUP(S45,'DON''T DELETE autorisktable'!$P$3:$Q$28,2) -> 5 | AG45: =VLOOKUP(AA45,'DON''T DELETE autorisktable'!$M$3:$N$12,2) -> 5 | AH45: =VLOOKUP(T45,'DON''T DELETE autorisktable'!$S$3:$W$66,$AF45) -> 21
C46: 15.3 | D46: Section F-F | E46: U | G46: 0.05 | H46: 0.062 | I46: 0.052 | P46: 15.3 | Q46: MOD | S46: 1 | T46: 0.6666666667 | U46: (%TOL) | V46: 0.0009 | W46: 0.0509 | X46: 0.0611 | Y46: =IF('Form-3'!AC25="HI","YES","no") -> no | AA46: 0.3 | AB46: 0.05 | AC46: 0.062 | AD46: 0.052 | AE46: =IF(AND(AB46="",AC46=""),"",INDEX('DON''T DELETE autorisktable'!$C$3:$J$23,AH46,AG46)) -> MOD | AF46: =VLOOKUP(S46,'DON''T DELETE autorisktable'!$P$3:$Q$28,2) -> 5 | AG46: =VLOOKUP(AA46,'DON''T DELETE autorisktable'!$M$3:$N$12,2) -> 5 | AH46: =VLOOKUP(T46,'DON''T DELETE autorisktable'!$S$3:$W$66,$AF46) -> 12
C47: 15.4 | D47: SectionA-A | E47: V, KPC-2 | G47: 0.052 | H47: 0.06 | I47: 0.055 | P47: 15.4 | Q47: LO | S47: 1 | T47: 0.25 | U47: (%TOL) | V47: not required | Y47: =IF('Form-3'!AC24="HI","YES","no") -> no | AA47: 0.3 | AB47: 0.052 | AC47: 0.06 | AD47: 0.055 | AE47: =IF(AND(AB47="",AC47=""),"",INDEX('DON''T DELETE autorisktable'!$C$3:$J$23,AH47,AG47)) -> LO | AF47: =VLOOKUP(S47,'DON''T DELETE autorisktable'!$P$3:$Q$28,2) -> 5 | AG47: =VLOOKUP(AA47,'DON''T DELETE autorisktable'!$M$3:$N$12,2) -> 5 | AH47: =VLOOKUP(T47,'DON''T DELETE autorisktable'!$S$3:$W$66,$AF47) -> 21
C48: 15.5 | D48: Section C-C | E48: V, KPC-2 | G48: 0.052 | H48: 0.06 | I48: 0.053 | P48: 15.5 | Q48: HI | S48: 1 | T48: 0.75 | U48: (%TOL) | V48: 0.0006 | W48: 0.0526 | X48: 0.0594 | Y48: =IF('Form-3'!AC22="HI","YES","no") -> no | AA48: 0.3 | AB48: 0.052 | AC48: 0.06 | AD48: 0.053 | AE48: =IF(AND(AB48="",AC48=""),"",INDEX('DON''T DELETE autorisktable'!$C$3:$J$23,AH48,AG48)) -> HI | AF48: =VLOOKUP(S48,'DON''T DELETE autorisktable'!$P$3:$Q$28,2) -> 5 | AG48: =VLOOKUP(AA48,'DON''T DELETE autorisktable'!$M$3:$N$12,2) -> 5 | AH48: =VLOOKUP(T48,'DON''T DELETE autorisktable'!$S$3:$W$66,$AF48) -> 8
C49: 15.6 | D49: Section F-F | E49: V, KPC-2 | G49: 0.054 | H49: 0.062 | I49: 0.059 | P49: 15.6 | Q49: LO | S49: 1 | T49: 0.25 | U49: (%TOL) | V49: not required | Y49: =IF('Form-3'!AC26="HI","YES","no") -> no | AA49: 0.3 | AB49: 0.054 | AC49: 0.062 | AD49: 0.059 | AE49: =IF(AND(AB49="",AC49=""),"",INDEX('DON''T DELETE autorisktable'!$C$3:$J$23,AH49,AG49)) -> LO | AF49: =VLOOKUP(S49,'DON''T DELETE autorisktable'!$P$3:$Q$28,2) -> 5 | AG49: =VLOOKUP(AA49,'DON''T DELETE autorisktable'!$M$3:$N$12,2) -> 5 | AH49: =VLOOKUP(T49,'DON''T DELETE autorisktable'!$S$3:$W$66,$AF49) -> 21
U50: (%TOL) | Y50: =IF('Form-3'!AC18="HI","YES","no") -> no | AA50: 0.3 | AD50: 0 | AE50: =IF(AND(AB50="",AC50=""),"",INDEX('DON''T DELETE autorisktable'!$C$3:$J$23,AH50,AG50)) ->  | AF50: =VLOOKUP(S50,'DON''T DELETE autorisktable'!$P$3:$Q$28,2) ->  | AG50: =VLOOKUP(AA50,'DON''T DELETE autorisktable'!$M$3:$N$12,2) -> 5 | AH50: =VLOOKUP(T50,'DON''T DELETE autorisktable'!$S$3:$W$66,$AF50) -> 
C51: Angular dimensions
C52: 131 | D52: 6A-3 | G52: 12deg 4' 30" | H52: 12deg 6' 30" | I52: 12deg 5' 15" | J52: (( Angular dimensions in Degrees, Minutes, Seconds will not calculate risk. The spreadsheet will interpret this notation as TEXT. It is permissible to report an optional line in Radians. RADIANS = DEGREES + (MINUTES/60) + (SECONDS/3600). If there is a discrepancy between the two, preference will be given to the line reported the same way the blueprint defines the feature )) | P52: 131 | Q52: =AE52 ->  | S52: 1 | T52: =+IF(AND(G52="",H52=""),"",IF(G52="",I52/H52,(2*ABS(G52/2+H52/2-I52)/(H52-G52)))) ->  | U52: =IF(S52<25,"(%TOL)","Cpk") -> (%TOL) | V52: =+IF(AE52="LO","not required",AA52/4*(AC52-AB52)) ->  | W52: =IF(V52<>"not required",+AB52+V52,"") ->  | X52: =IF(V52<>"not required",+AC52-V52,"") ->  | Y52: =IF('Form-3'!AC27="HI","YES","no") -> no | AA52: =+IF(R52="",0.3,R52) -> 0.3 | AB52: =IF(G52="","",+G52) -> 12deg 4' 30" | AC52: 12deg 6' 30" | AD52: =+I52 -> 12deg 5' 15" | AE52: =IF(AND(AB52="",AC52=""),"",INDEX('DON''T DELETE autorisktable'!$C$3:$J$23,AH52,AG52)) ->  | AF52: =VLOOKUP(S52,'DON''T DELETE autorisktable'!$P$3:$Q$28,2) -> 5 | AG52: =VLOOKUP(AA52,'DON''T DELETE autorisktable'!$M$3:$N$12,2) -> 5 | AH52: =VLOOKUP(T52,'DON''T DELETE autorisktable'!$S$3:$W$66,$AF52) -> 
C53: 131 decimal | D53: conversion | G53: =12+(4/60)+(30/60)/60 -> 12.075 | H53: =12+(6/60)+(30/60)/60 -> 12.10833333 | I53: =12+(5/60)+(15/60)/60 -> 12.0875 | P53: 131 decimal | Q53: =AE53 -> LO | S53: 1 | T53: =+IF(AND(G53="",H53=""),"",IF(G53="",I53/H53,(2*ABS(G53/2+H53/2-I53)/(H53-G53)))) -> 0.25 | U53: =IF(S53<25,"(%TOL)","Cpk") -> (%TOL) | V53: =+IF(AE53="LO","not required",AA53/4*(AC53-AB53)) -> not required | W53: =IF(V53<>"not required",+AB53+V53,"") ->  | X53: =IF(V53<>"not required",+AC53-V53,"") ->  | Y53: =IF('Form-3'!AC28="HI","YES","no") -> no | AA53: =+IF(R53="",0.3,R53) -> 0.3 | AB53: 12.075 | AC53: 12.10833333 | AD53: =+I53 -> 12.0875 | AE53: =IF(AND(AB53="",AC53=""),"",INDEX('DON''T DELETE autorisktable'!$C$3:$J$23,AH53,AG53)) -> LO | AF53: =VLOOKUP(S53,'DON''T DELETE autorisktable'!$P$3:$Q$28,2) -> 5 | AG53: =VLOOKUP(AA53,'DON''T DELETE autorisktable'!$M$3:$N$12,2) -> 5 | AH53: =VLOOKUP(T53,'DON''T DELETE autorisktable'!$S$3:$W$66,$AF53) -> 21
Q54: =AE54 ->  | T54: =+IF(AND(G54="",H54=""),"",IF(G54="",I54/H54,(2*ABS(G54/2+H54/2-I54)/(H54-G54)))) ->  | U54: =IF(S54<25,"(%TOL)","Cpk") -> (%TOL) | V54: =+IF(AE54="LO","not required",AA54/4*(AC54-AB54)) ->  | W54: =IF(V54<>"not required",+AB54+V54,"") ->  | X54: =IF(V54<>"not required",+AC54-V54,"") ->  | Y54: =IF('Form-3'!AC29="HI","YES","no") -> no | AA54: =+IF(R54="",0.3,R54) -> 0.3 | AD54: =+I54 -> 0 | AE54: =IF(AND(AB54="",AC54=""),"",INDEX('DON''T DELETE autorisktable'!$C$3:$J$23,AH54,AG54)) ->  | AF54: =VLOOKUP(S54,'DON''T DELETE autorisktable'!$P$3:$Q$28,2) ->  | AG54: =VLOOKUP(AA54,'DON''T DELETE autorisktable'!$M$3:$N$12,2) -> 5 | AH54: =VLOOKUP(T54,'DON''T DELETE autorisktable'!$S$3:$W$66,$AF54) -> 
C55: Attribute Measurements
C56: 241 | D56: Note4, 4B-2 | E56: KPC-2 | G56: No coat permitted zone (D) | I56: NO COAT | J56: (( Attribute measurements should be reserved ONLY for items that cannot be measured variably per AS9102. ANY NON-CONFORMANCE to an attribute should be considered HI RISK )) | P56: 241 | Q56: =AE56 ->  | S56: 1 | T56: =+IF(AND(G57="",H57=""),"",IF(G57="",I57/H57,(2*ABS(G57/2+H57/2-I57)/(H57-G57)))) ->  | U56: =IF(S56<25,"(%TOL)","Cpk") -> (%TOL) | V56: =+IF(AE56="LO","not required",AA56/4*(AC56-AB56)) ->  | W56: =IF(V56<>"not required",+AB56+V56,"") ->  | X56: =IF(V56<>"not required",+AC56-V56,"") ->  | Y56: =IF('Form-3'!AC31="HI","YES","no") -> no | AA56: =+IF(R56="",0.3,R56) -> 0.3 | AB56: =IF(G57="","",+G57) -> No coat permitted zone (D) | AC56: =IF(H57="","",+H57) ->  | AD56: =+I57 -> NO COAT | AE56: =IF(AND(AB56="",AC56=""),"",INDEX('DON''T DELETE autorisktable'!$C$3:$J$23,AH56,AG56)) ->  | AF56: =VLOOKUP(S56,'DON''T DELETE autorisktable'!$P$3:$Q$28,2) -> 5 | AG56: =VLOOKUP(AA56,'DON''T DELETE autorisktable'!$M$3:$N$12,2) -> 5 | AH56: =VLOOKUP(T56,'DON''T DELETE autorisktable'!$S$3:$W$66,$AF56) -> 
C57: 242 | D57: Note4, 6B-2 | E57: KPC-2 | G57: No coat permitted zone (D) | I57: NO COAT | J57: (( Attribute measurements should be reserved ONLY for items that cannot be measured variably per AS9102. ANY NON-CONFORMANCE to an attribute should be considered HI RISK )) | P57: 242 | S57: 1 | T57: =+IF(AND(G58="",H58=""),"",IF(G58="",I58/H58,(2*ABS(G58/2+H58/2-I58)/(H58-G58)))) ->  | U57: (%TOL) | Y57: =IF('Form-3'!AC32="HI","YES","no") -> no | AA57: 0.3 | AB57: =IF(G58="","",+G58) -> No coat permitted zone (D) | AC57: =IF(H58="","",+H58) ->  | AD57: =+I58 -> coating found | AE57: =IF(AND(AB57="",AC57=""),"",INDEX('DON''T DELETE autorisktable'!$C$3:$J$23,AH57,AG57)) ->  | AF57: =VLOOKUP(S57,'DON''T DELETE autorisktable'!$P$3:$Q$28,2) -> 5 | AG57: =VLOOKUP(AA57,'DON''T DELETE autorisktable'!$M$3:$N$12,2) -> 5 | AH57: =VLOOKUP(T57,'DON''T DELETE autorisktable'!$S$3:$W$66,$AF57) -> 
C58: 243 | D58: Note4, 6C-2 | E58: KPC-2 | G58: No coat permitted zone (D) | I58: coating found | J58: (( Attribute measurements should be reserved ONLY for items that cannot be measured variably per AS9102. ANY NON-CONFORMANCE to an attribute should be considered HI RISK )) | P58: 243 | S58: 1 | T58: =+IF(AND(G60="",H60=""),"",IF(G60="",I60/H60,(2*ABS(G60/2+H60/2-I60)/(H60-G60)))) ->  | U58: (%TOL) | Y58: =IF('Form-3'!AC33="HI","YES","no") -> no | AA58: 0.3 | AB58: =IF(G60="","",+G60) ->  | AC58: =IF(H60="","",+H60) ->  | AD58: =+I60 -> 0 | AE58: =IF(AND(AB58="",AC58=""),"",INDEX('DON''T DELETE autorisktable'!$C$3:$J$23,AH58,AG58)) ->  | AF58: =VLOOKUP(S58,'DON''T DELETE autorisktable'!$P$3:$Q$28,2) -> 5 | AG58: =VLOOKUP(AA58,'DON''T DELETE autorisktable'!$M$3:$N$12,2) -> 5 | AH58: =VLOOKUP(T58,'DON''T DELETE autorisktable'!$S$3:$W$66,$AF58) -> 
C60: Nom. & Tolerance Designation on BP (not min-max) | S60: 1 | T60: =+IF(AND(G60="",H60=""),"",IF(G60="",I60/H60,(2*ABS(G60/2+H60/2-I60)/(H60-G60)))) ->  | U60: (%TOL) | Y60: =IF('Form-3'!AC34="HI","YES","no") -> no | AA60: 0.3 | AB60: =IF(G60="","",+G60) ->  | AC60: =IF(H60="","",+H60) ->  | AD60: =+I60 -> 0 | AE60: =IF(AND(AB60="",AC60=""),"",INDEX('DON''T DELETE autorisktable'!$C$3:$J$23,AH60,AG60)) ->  | AF60: =VLOOKUP(S60,'DON''T DELETE autorisktable'!$P$3:$Q$28,2) -> 5 | AG60: =VLOOKUP(AA60,'DON''T DELETE autorisktable'!$M$3:$N$12,2) -> 5 | AH60: =VLOOKUP(T60,'DON''T DELETE autorisktable'!$S$3:$W$66,$AF60) -> 
A61: 0.04 | B61: 0.005 | C61: 319 | D61: 10C-5 | G61: =+A61-B61 -> 0.035 | H61: =+A61+B61 -> 0.045 | I61: 0.0425 | J61: (( If the blueprint calls out ".040 +/-.002", it is permissible to enter the min and max as calculated (different than on the Blueprint), or to insert two columns to the left (outside the AS9102 form), and write formulae to perform the calculations. CLICK on G42 and H42 to see formulae. )) | P61: 319 | Q61: LO | S61: 1 | T61: =+IF(AND(G61="",H61=""),"",IF(G61="",I61/H61,(2*ABS(G61/2+H61/2-I61)/(H61-G61)))) -> 0.5 | U61: (%TOL) | V61: not required | Y61: =IF('Form-3'!AC35="HI","YES","no") -> no | AA61: 0.3 | AB61: =IF(G61="","",+G61) -> 0.035 | AC61: =IF(H61="","",+H61) -> 0.045 | AD61: =+I61 -> 0.0425 | AE61: =IF(AND(AB61="",AC61=""),"",INDEX('DON''T DELETE autorisktable'!$C$3:$J$23,AH61,AG61)) -> LO | AF61: =VLOOKUP(S61,'DON''T DELETE autorisktable'!$P$3:$Q$28,2) -> 5 | AG61: =VLOOKUP(AA61,'DON''T DELETE autorisktable'!$M$3:$N$12,2) -> 5 | AH61: =VLOOKUP(T61,'DON''T DELETE autorisktable'!$S$3:$W$66,$AF61) -> 21
C63: Four (or more) Decimal Places | Q63: =AE63 ->  | S63: 1 | T63: =+IF(AND(G63="",H63=""),"",IF(G63="",I63/H63,(2*ABS(G63/2+H63/2-I63)/(H63-G63)))) ->  | U63: =IF(S63<25,"(%TOL)","Cpk") -> (%TOL) | V63: =+IF(AE63="LO","not required",AA63/4*(AC63-AB63)) ->  | W63: =IF(V63<>"not required",+AB63+V63,"") ->  | X63: =IF(V63<>"not required",+AC63-V63,"") ->  | Y63: =IF('Form-3'!AC37="HI","YES","no") -> no | AA63: =+IF(R63="",0.3,R63) -> 0.3 | AB63: =IF(G63="","",+G63) ->  | AC63: =IF(H63="","",+H63) ->  | AD63: =+I63 -> 0 | AE63: =IF(AND(AB63="",AC63=""),"",INDEX('DON''T DELETE autorisktable'!$C$3:$J$23,AH63,AG63)) ->  | AF63: =VLOOKUP(S63,'DON''T DELETE autorisktable'!$P$3:$Q$28,2) -> 5 | AG63: =VLOOKUP(AA63,'DON''T DELETE autorisktable'!$M$3:$N$12,2) -> 5 | AH63: =VLOOKUP(T63,'DON''T DELETE autorisktable'!$S$3:$W$66,$AF63) -> 
C64: 511 | D64: 3D-1 | G64: 0.0001 | H64: 0.001 | I64: 0.0004 | J64: (( Enter the number of decimal places as appropriate. Excel may format ".040" as ".04" automatically. In order to fix this, right-click on the cell to be reformatted, and select "FORMAT CELLS", then select "number" and change the decimal places )) | P64: 511 | Q64: =AE64 -> LO | S64: 1 | T64: =+IF(AND(G64="",H64=""),"",IF(G64="",I64/H64,(2*ABS(G64/2+H64/2-I64)/(H64-G64)))) -> 0.3333333333 | U64: =IF(S64<25,"(%TOL)","Cpk") -> (%TOL) | V64: =+IF(AE64="LO","not required",AA64/4*(AC64-AB64)) -> not required | W64: =IF(V64<>"not required",+AB64+V64,"") ->  | X64: =IF(V64<>"not required",+AC64-V64,"") ->  | Y64: =IF('Form-3'!AC38="HI","YES","no") -> no | AA64: =+IF(R64="",0.3,R64) -> 0.3 | AB64: =IF(G64="","",+G64) -> 0.0001 | AC64: =IF(H64="","",+H64) -> 0.001 | AD64: =+I64 -> 0.0004 | AE64: =IF(AND(AB64="",AC64=""),"",INDEX('DON''T DELETE autorisktable'!$C$3:$J$23,AH64,AG64)) -> LO | AF64: =VLOOKUP(S64,'DON''T DELETE autorisktable'!$P$3:$Q$28,2) -> 5 | AG64: =VLOOKUP(AA64,'DON''T DELETE autorisktable'!$M$3:$N$12,2) -> 5 | AH64: =VLOOKUP(T64,'DON''T DELETE autorisktable'!$S$3:$W$66,$AF64) -> 21
D67: ALWAYS HANDLE NON-CONFORMANCES PER PWQA6088
D68: HI RISK DOES NOT MEAN THE PART CANNOT SHIP !
D69: LOW RISK DOES NOT MEAN THE PROCESS IS 100% SAFE !

Sheet DON'T DELETE autorisktable
C1: 10 | D1: 15 | E1: 20 | F1: 25 | G1: 0.3 | H1: 35 | I1: 40 | J1: 60
C2: 1 | D2: 2 | E2: 3 | F2: 4 | G2: 5 | H2: 6 | I2: 7 | J2: 8 | M2: GRR | N2: GRR# | P2: No of pcs | Q2: Cap column | S2: CAP | T2: CPK ROW | U2: 10-24row | V2: 4-9row | W2: 1-3row
B3: 1 | C3: MOD | D3: HI | E3: HI | F3: HI | G3: HI | H3: HI | I3: HI | J3: HI | M3: 0 | N3: 1 | P3: 1 | Q3: 5 | S3: 0 | T3: 1 | U3: 21 | V3: 21 | W3: 21
B4: 2 | C4: MOD | D4: HI | E4: HI | F4: HI | G4: HI | H4: HI | I4: HI | J4: HI | M4: 0.099999801 | N4: 1 | P4: 2 | Q4: 5 | S4: 0.1999999 | T4: 1 | U4: 21 | V4: 21 | W4: 21
B5: 3 | C5: MOD | D5: HI | E5: HI | F5: HI | G5: HI | H5: HI | I5: HI | J5: HI | M5: 0.1499998 | N5: 2 | P5: 3 | Q5: 5 | S5: 0.2999999 | T5: 2 | U5: 21 | V5: 21 | W5: 21
B6: 4 | C6: MOD | D6: HI | E6: HI | F6: HI | G6: HI | H6: HI | I6: HI | J6: HI | M6: 0.1999998001 | N6: 3 | P6: 4 | Q6: 4 | S6: 0.2499999 | T6: 3 | U6: 21 | V6: 21 | W6: 21
B7: 5 | C7: MOD | D7: HI | E7: HI | F7: HI | G7: HI | H7: HI | I7: HI | J7: HI | M7: 0.2499998001 | N7: 4 | P7: 5 | Q7: 4 | S7: 0.3999999 | T7: 4 | U7: 21 | V7: 21 | W7: 21
B8: 6 | C8: MOD | D8: HI | E8: HI | F8: HI | G8: HI | H8: HI | I8: HI | J8: HI | M8: 0.29999981 | N8: 5 | P8: 6 | Q8: 4 | S8: 0.4499999 | T8: 5 | U8: 21 | V8: 21 | W8: 21
B9: 7 | C9: MOD | D9: HI | E9: HI | F9: HI | G9: HI | H9: HI | I9: HI | J9: HI | M9: 0.3499998 | N9: 6 | P9: 7 | Q9: 4 | S9: 0.4999999 | T9: 6 | U9: 21 | V9: 21 | W9: 21
B10: 8 | C10: MOD | D10: MOD | E10: HI | F10: HI | G10: HI | H10: HI | I10: HI | J10: HI | M10: 0.3999998 | N10: 7 | P10: 8 | Q10: 4 | S10: 0.5499999 | T10: 7 | U10: 21 | V10: 21 | W10: 21
B11: 9 | C11: MOD | D11: MOD | E11: HI | F11: HI | G11: HI | H11: HI | I11: HI | J11: HI | M11: 0.4999998 | N11: 8 | P11: 9 | Q11: 4 | S11: 0.5599999 | T11: 7 | U11: 21 | V11: 21 | W11: 20
B12: 10 | C12: MOD | D12: MOD | E12: MOD | F12: HI | G12: HI | H12: HI | I12: HI | J12: HI | M12: 0.5999998 | N12: 8 | P12: 10 | Q12: 4 | S12: 0.5699999 | T12: 7 | U12: 21 | V12: 21 | W12: 19
B13: 11 | C13: MOD | D13: MOD | E13: MOD | F13: MOD | G13: HI | H13: HI | I13: HI | J13: HI | P13: 11 | Q13: 3 | S13: 0.5799999 | T13: 7 | U13: 21 | V13: 21 | W13: 18
B14: 12 | C14: MOD | D14: MOD | E14: MOD | F14: MOD | G14: MOD | H14: HI | I14: HI | J14: HI | P14: 12 | Q14: 3 | S14: 0.5899999 | T14: 7 | U14: 21 | V14: 21 | W14: 17
B15: 13 | C15: MOD | D15: MOD | E15: MOD | F15: MOD | G15: MOD | H15: MOD | I15: HI | J15: HI | P15: 13 | Q15: 3 | S15: 0.5999999 | T15: 8 | U15: 21 | V15: 21 | W15: 16
B16: 14 | C16: MOD | D16: MOD | E16: MOD | F16: MOD | G16: MOD | H16: MOD | I16: HI | J16: HI | P16: 14 | Q16: 3 | S16: 0.6099999 | T16: 8 | U16: 21 | V16: 21 | W16: 15
B17: 15 | C17: MOD | D17: MOD | E17: MOD | F17: MOD | G17: MOD | H17: MOD | I17: MOD | J17: HI | P17: 15 | Q17: 3 | S17: 0.6199999 | T17: 8 | U17: 21 | V17: 21 | W17: 14
B18: 16 | C18: LO | D18: LO | E18: LO | F18: MOD | G18: MOD | H18: MOD | I18: MOD | J18: MOD | P18: 16 | Q18: 3 | S18: 0.6299999 | T18: 8 | U18: 21 | V18: 20 | W18: 14
B19: 17 | C19: LO | D19: LO | E19: LO | F19: LO | G19: MOD | H19: MOD | I19: MOD | J19: MOD | P19: 17 | Q19: 3 | S19: 0.6399999 | T19: 8 | U19: 21 | V19: 20 | W19: 13
B20: 18 | C20: LO | D20: LO | E20: LO | F20: LO | G20: LO | H20: MOD | I20: MOD | J20: MOD | P20: 18 | Q20: 3 | S20: 0.6499999 | T20: 9 | U20: 21 | V20: 19 | W20: 12
B21: 19 | C21: LO | D21: LO | E21: LO | F21: LO | G21: LO | H21: LO | I21: MOD | J21: MOD | P21: 19 | Q21: 3 | S21: 0.6599999 | T21: 9 | U21: 21 | V21: 18 | W21: 12
B22: 20 | C22: LO | D22: LO | E22: LO | F22: LO | G22: LO | H22: LO | I22: LO | J22: MOD | P22: 20 | Q22: 3 | S22: 0.6699999 | T22: 9 | U22: 21 | V22: 18 | W22: 11
B23: 21 | C23: LO | D23: LO | E23: LO | F23: LO | G23: LO | H23: LO | I23: LO | J23: MOD | P23: 21 | Q23: 3 | S23: 0.6799999 | T23: 9 | U23: 21 | V23: 17 | W23: 11
P24: 22 | Q24: 3 | S24: 0.6899999 | T24: 9 | U24: 21 | V24: 17 | W24: 10
P25: 23 | Q25: 3 | S25: 0.6999999 | T25: 10 | U25: 21 | V25: 16 | W25: 10
P26: 24 | Q26: 3 | S26: 0.7199999 | T26: 10 | U26: 21 | V26: 16 | W26: 9
P27: 25 | Q27: 2 | S27: 0.7299999 | T27: 10 | U27: 20 | V27: 15 | W27: 9
P28: 10000 | Q28: 2 | S28: 0.7499999 | T28: 11 | U28: 20 | V28: 14 | W28: 8
S29: 0.7599999 | T29: 11 | U29: 19 | V29: 14 | W29: 8
S30: 0.7799999 | T30: 11 | U30: 18 | V30: 13 | W30: 7
S31: 0.7999999 | T31: 12 | U31: 18 | V31: 13 | W31: 7
S32: 0.8199999 | T32: 12 | U32: 17 | V32: 12 | W32: 6
S33: 0.8499999 | T33: 13 | U33: 16 | V33: 11 | W33: 6
S34: 0.8699999 | T34: 13 | U34: 16 | V34: 11 | W34: 5
S35: 0.8899999 | T35: 13 | U35: 15 | V35: 11 | W35: 5
S36: 0.8999999 | T36: 14 | U36: 15 | V36: 10 | W36: 5
S37: 0.9349999 | T37: 14 | U37: 14 | V37: 10 | W37: 4
S38: 0.9499999 | T38: 15 | U38: 14 | V38: 9 | W38: 4
S39: 0.9799999 | T39: 15 | U39: 13 | V39: 9 | W39: 4
S40: 0.9999999 | T40: 16 | U40: 13 | V40: 8 | W40: 4
S41: 1.0199999 | T41: 16 | U41: 13 | V41: 8 | W41: 3
S42: 1.0299999 | T42: 16 | U42: 12 | V42: 8 | W42: 3
S43: 1.0499999 | T43: 17 | U43: 12 | V43: 8 | W43: 3
S44: 1.0699999 | T44: 17 | U44: 12 | V44: 7 | W44: 3
S45: 1.0899999 | T45: 17 | U45: 11 | V45: 7 | W45: 3
S46: 1.0999999 | T46: 18 | U46: 11 | V46: 7 | W46: 3
S47: 1.1199999 | T47: 18 | U47: 11 | V47: 7 | W47: 2
S48: 1.1499999 | T48: 19 | U48: 11 | V48: 6 | W48: 2
S49: 1.1599999 | T49: 19 | U49: 10 | V49: 6 | W49: 2
S50: 1.1999999 | T50: 20 | U50: 10 | V50: 6 | W50: 2
S51: 1.2399999 | T51: 20 | U51: 9 | V51: 6 | W51: 2
S52: 1.2499999 | T52: 21 | U52: 9 | V52: 5 | W52: 2
S53: 1.3299999 | T53: 21 | U53: 8 | V53: 5 | W53: 2
S54: 1.3799999 | T54: 21 | U54: 8 | V54: 4 | W54: 2
S55: 1.4399999 | T55: 21 | U55: 7 | V55: 4 | W55: 2
S56: 1.4999999 | T56: 21 | U56: 7 | V56: 4 | W56: 1
S57: 1.5399999 | T57: 21 | U57: 7 | V57: 3 | W57: 1
S58: 1.5799999 | T58: 21 | U58: 6 | V58: 3 | W58: 1
S59: 1.7399999 | T59: 21 | U59: 5 | V59: 3 | W59: 1
S60: 1.7499999 | T60: 21 | U60: 5 | V60: 2 | W60: 1
S61: 1.9399999 | T61: 21 | U61: 4 | V61: 2 | W61: 1
S62: 2.1999999 | T62: 21 | U62: 3 | V62: 2 | W62: 1
S63: 2.4999999 | T63: 21 | U63: 3 | V63: 1 | W63: 1
S64: 2.5399999 | T64: 21 | U64: 2 | V64: 1 | W64: 1
S65: 3.7499999 | T65: 21 | U65: 1 | V65: 1 | W65: 1
S66: 9.9999999 | T66: 21 | U66: 1 | V66: 1 | W66: 1
